bitfinex/quotes_ETHUSD_20251010
["timestamp","ask_amount","ask_price","bid_price","bid_amount"]
[1760121393988,2.44410092,4091.5,4091.4,0.4371]
[1760121394190,4.36410092,4091.5,4091.4,0.4371]
[1760121394389,2.44504683,4091.6,4091.4,0.4371]
[1760121394605,2.44504683,4091.6,4091.1,0.6336]
[1760121394606,0.001,4091.6,4091.1,4.3396]
[1760121394829,0.001,4091.6,4091.0,14.5]
[1760121395012,2.44427062,4091.2,4091.1,3.706]
[1760121395413,2.44444987,4090.9,4090.8,3.706]
[1760121395612,1.92,4091.3,4090.8,18.206]
[1760121395922,2.44444987,4090.9,4090.8,18.206]
[1760121396092,1.92,4091.1,4090.8,3.706]
[1760121396292,2.44444987,4090.9,4090.8,3.706]
[1760121397600,2.44462914,4090.6,4090.4,14.5]
[1760121397825,2.44479732,4090.4,4090.1,0.2295]
[1760121398031,2.44462914,4090.6,4090.4,3.706]
[1760121398032,2.44468891,4090.5,4090.4,3.706]
[1760121398235,2.44486822,4090.2,4090.1,0.4371]
[1760121398397,2.44455825,4090.8,4088.7,2.67521094]
[1760121398398,2.44522691,4089.6,4089.5,14.502]
[1760121398599,2.44522691,4089.6,4089.5,0.002]
[1760121399129,4.99954637,4089.6,4089.5,0.002]
[1760121399328,4.88774637,4089.6,4089.5,0.002]
[1760121399938,4.99954637,4089.6,4089.5,0.002]
[1760121400797,4.88774637,4089.6,4089.5,0.002]
[1760121401630,4.88774637,4089.6,4089.5,0.4391]
[1760121401849,2.44251946,4089.6,4089.5,0.4391]
[1760121402001,0.52251946,4090.3,4089.6,0.6336]
[1760121402200,2.44490057,4090.2,4089.8,0.6336]
[1760121402432,0.65266873,4090.6,4090.0,0.1216]
[1760121402730,4.36462914,4090.6,4090.0,0.1216]
[1760121402932,2.44485494,4090.3,4090.0,0.1216]
[1760121403107,2.44251946,4090.4,4090.0,0.5587]
[1760121403309,0.52251946,4090.4,4089.5,0.002]
[1760121403534,0.1216,4089.9,4089.5,0.002]
[1760121403736,2.44512901,4089.8,4089.5,0.002]
[1760121403906,2.44510734,4089.8,4089.6,0.4371]
[1760121404101,2.44516712,4089.7,4089.6,0.4371]
[1760121404407,2.44522691,4089.6,4089.5,0.002]
[1760121405498,4.36522691,4089.6,4089.5,0.002]
[1760121405701,2.44522691,4089.6,4089.5,0.002]
[1760121405897,2.9673671,4089.6,4089.5,0.002]
[1760121406143,2.44522691,4089.6,4089.5,0.002]
[1760121406350,2.96731757,4089.6,4089.5,0.002]
[1760121406947,3.06771757,4089.6,4089.5,0.002]
[1760121407309,2.96731757,4089.6,4089.5,0.002]
[1760121408532,3.06771757,4089.6,4089.5,0.002]
[1760121409806,2.96731757,4089.6,4089.5,0.002]
[1760121410211,12.01731757,4089.6,4089.5,0.002]
[1760121411342,12.11771757,4089.6,4089.5,0.002]
[1760121411917,15.82471757,4089.6,4089.5,0.002]
[1760121412752,15.72431757,4089.6,4089.5,0.002]
[1760121413456,15.82471757,4089.6,4089.5,0.002]
[1760121413625,8.69471757,4089.6,4089.5,0.002]
[1760121413958,8.59431757,4089.6,4089.5,0.002]
[1760121414735,2.44209066,4089.6,4089.5,0.002]
[1760121415015,4.36522691,4089.6,4089.5,0.002]
[1760121415745,4.88699451,4089.6,4089.5,0.002]
[1760121417346,8.59399451,4089.6,4089.5,0.002]
[1760121418056,4.88699451,4089.6,4089.5,0.002]
[1760121418221,4.36522691,4089.6,4089.5,0.002]
[1760121418563,4.88651666,4089.6,4089.5,0.002]
[1760121420076,4.36522691,4089.6,4089.5,0.002]
[1760121420280,4.36522691,4089.6,4089.5,0.4654]
[1760121421168,4.36522691,4089.6,4089.5,0.002]
[1760121421362,4.46562691,4089.6,4089.5,0.002]
[1760121421588,4.98743542,4089.6,4089.5,0.002]
[1760121421886,4.88703542,4089.6,4089.5,0.002]
[1760121422185,4.36522691,4089.6,4089.5,0.002]
[1760121422687,4.88729123,4089.6,4089.5,0.002]
[1760121425853,4.98769123,4089.6,4089.5,0.002]
[1760121426045,5.64035996,4089.6,4089.5,0.002]
[1760121426238,4.98769123,4089.6,4089.5,0.002]
[1760121426423,38.33263004,4089.6,4089.5,0.002]
[1760121426627,14.93638796,4089.6,4089.5,0.002]
[1760121426800,14.02263004,4089.6,4089.5,0.002]
[1760121427002,12.71693331,4089.6,4089.5,0.002]
[1760121427402,2.44607712,4088.2,4087.9,0.02446243]
[1760121427649,0.52206432,4088.4,4087.7,0.4634]
[1760121427827,2.44611388,4088.2,4087.8,0.25014]
[1760121428002,2.44613234,4088.1,4087.8,0.71354]
[1760121428448,2.44607824,4088.2,4087.8,0.71354]
[1760121428646,0.52206432,4088.4,4087.9,0.4634]
[1760121428936,0.52206432,4088.4,4087.5,2.038]
[1760121428937,2.44616879,4088.1,4087.6,0.6336]
[1760121429255,0.52206432,4088.1,4087.3,4.906]
[1760121429551,0.52206432,4088.3,4087.7,0.4634]
[1760121429704,2.44206432,4088.2,4087.7,0.4634]
[1760121430244,0.52206432,4088.2,4087.7,0.4634]
[1760121430445,2.44612245,4088.2,4087.8,0.4634]
[1760121430739,0.52206432,4088.3,4088.1,0.2365]
[1760121430913,2.44603947,4088.3,4088.1,0.2365]
[1760121431113,4.88810379,4088.3,4088.2,0.4634]
[1760121431517,2.96810379,4088.3,4087.5,0.6336]
[1760121431706,2.96810379,4088.3,4087.7,0.6336]
[1760121431707,2.44619262,4088.0,4087.7,0.6336]
[1760121431907,2.44619262,4088.0,4087.8,0.4634]
[1760121432135,2.44618395,4088.0,4087.9,0.4634]
[1760121432335,0.52206432,4088.1,4087.6,0.15876]
[1760121432536,0.52206432,4088.2,4087.7,0.4634]
[1760121432718,2.44606903,4088.2,4087.8,0.4634]
[1760121433036,2.44623619,4088.0,4087.6,0.62216]
[1760121433202,0.5237303,4088.0,4087.6,0.4634]
[1760121433402,2.4437303,4088.3,4087.6,0.4634]
[1760121433629,3.707,4088.4,4087.6,0.4634]
[1760121433630,2.44628971,4087.9,4087.6,0.4634]
[1760121433833,0.65496331,4088.5,4087.2,5.745]
[1760121433834,0.65496331,4088.7,4087.7,0.48786363]
[1760121434163,1.17855124,4088.6,4087.7,0.4634]
[1760121434438,2.44633069,4087.8,4087.4,1.097]
[1760121434615,1.92,4088.2,4087.5,0.4634]
[1760121434800,1.92,4088.2,4087.9,0.002]
[1760121435007,0.52358793,4088.2,4088.1,0.8701]
[1760121435224,0.52358793,4088.8,4088.2,0.6336]
[1760121435428,0.52358793,4088.8,4088.2,1.097]
[1760121435700,2.44576515,4088.7,4088.2,1.097]
[1760121435906,0.52358793,4088.7,4088.3,0.4634]
[1760121436106,2.04240271,4089.1,4088.3,0.4634]
[1760121436107,0.52358793,4088.6,4088.3,0.4634]
[1760121436307,1.92,4088.8,4088.3,0.4634]
[1760121436308,0.52358793,4088.7,4088.3,0.4634]
[1760121436532,1.92,4088.5,4088.4,0.5565]
[1760121436720,1.92,4088.6,4088.4,0.5565]
[1760121436915,2.44358793,4088.7,4088.5,0.4349]
[1760121437142,2.9694129,4088.6,4088.5,0.4349]
[1760121437304,2.44618395,4088.0,4087.9,0.002]
[1760121437624,2.44618395,4088.0,4087.9,0.1236]
[1760121438027,34.46658395,4088.0,4087.9,0.002]
[1760121438238,39.57044196,4088.0,4087.9,0.002]
[1760121438456,38.69715754,4088.0,4087.9,0.002]
[1760121438617,38.69880637,4088.0,4087.9,0.002]
[1760121438820,2.44636348,4087.7,4086.1,14.5]
[1760121439142,2.44636348,4087.7,4086.2,2.09147]
[1760121439143,2.44701797,4086.7,4086.2,2.09147]
[1760121439320,2.44696209,4086.7,4086.3,0.4349]
[1760121439515,0.52357359,4086.7,4086.4,0.4349]
[1760121439823,0.52357359,4087.0,4086.4,0.4349]
[1760121440025,2.44357359,4087.0,4086.4,1.79968681]
[1760121440238,2.57460333,4087.3,4086.5,0.4349]
[1760121440437,0.52357359,4087.2,4086.5,0.4349]
[1760121440640,2.97028772,4087.2,4086.5,0.4349]
[1760121440850,2.97025238,4087.2,4086.5,0.4349]
[1760121441054,2.97023733,4087.2,4086.6,0.42467766]
[1760121441374,2.44682768,4087.0,4086.7,0.4349]
[1760121441556,2.44682768,4087.0,4086.4,1.36478681]
[1760121441557,2.44682768,4087.0,4086.8,0.4349]
[1760121441888,2.44694405,4086.8,4086.4,1.36478681]
[1760121442043,2.44694405,4086.8,4086.5,0.4349]
[1760121442352,2.44357359,4087.3,4086.5,0.4349]
[1760121442524,1.92,4087.2,4086.5,0.4349]
[1760121442720,2.44690298,4086.8,4086.5,0.4349]
[1760121442922,2.44694547,4086.8,4086.1,14.9349]
[1760121443139,2.44708556,4086.5,4086.2,1.51697]
[1760121443460,1.92,4086.8,4086.2,1.51697]
[1760121443461,0.52212484,4086.7,4086.3,0.4349]
[1760121443645,2.44710824,4086.5,4086.3,0.4349]
[1760121444179,2.44720162,4086.3,4086.1,14.5]
[1760121444332,2.44725642,4086.3,4085.9,3.707]
[1760121444535,2.44720678,4086.3,4085.1,2.44786895]
[1760121444774,2.44708185,4086.5,4085.2,19.3526869]
[1760121444975,0.52197786,4086.6,4085.7,0.6336]
[1760121445180,4.36702943,4086.6,4085.9,0.6336]
[1760121445344,0.52180536,4086.5,4086.0,4.1429]
[1760121445545,0.52180536,4086.6,4086.1,0.6589]
[1760121445746,2.44702197,4086.6,4086.2,0.4349]
[1760121446077,1.92,4086.5,4086.3,0.4349]
[1760121446233,0.52180536,4086.6,4086.1,0.224]
[1760121446438,0.52180536,4086.8,4086.5,0.6336]
[1760121446683,0.52184818,4087.1,4086.7,0.6336]
[1760121446983,0.52187676,4087.8,4086.9,2.44684217]
[1760121447274,0.52187676,4087.8,4087.0,0.45936782]
[1760121447275,2.44187676,4087.8,4087.0,0.45936782]
[1760121447488,2.44637407,4087.7,4087.0,0.4349]
[1760121447776,2.44601327,4088.3,4087.4,2.44648932]
[1760121447978,0.65460333,4088.4,4087.2,3.08026141]
[1760121447979,0.52194604,4088.2,4087.5,0.02446483]
[1760121448181,3.708,4088.8,4087.5,0.02446483]
[1760121448182,0.1216,4088.5,4087.8,0.1216]
[1760121448363,2.44595642,4088.4,4087.9,0.4349]
[1760121448537,0.64354604,4088.5,4088.0,0.4349]
[1760121448738,0.1216,4088.5,4088.1,0.68336124]
[1760121448947,0.52194604,4088.7,4088.2,0.4349]
[1760121449164,0.52194604,4088.8,4088.3,0.02446004]
[1760121449428,2.96772932,4088.7,4088.4,0.1216]
[1760121449596,0.52194604,4088.8,4088.5,0.4349]
[1760121449898,2.96742771,4089.2,4088.7,0.1216]
[1760121450035,4.36558906,4089.0,4088.7,0.1216]
[1760121450238,0.52194604,4088.9,4088.7,0.1216]
[1760121450434,2.44570534,4088.8,4088.7,0.1216]
[1760121450676,2.96765138,4088.8,4088.7,0.1216]
[1760121450890,2.44600928,4088.3,4088.1,3.8296]
[1760121451195,2.44596042,4088.4,4088.1,3.8296]
[1760121451396,2.96787757,4088.5,4088.1,3.8296]
[1760121451564,2.44589623,4088.5,4088.1,0.1216]
[1760121451880,2.44606428,4088.2,4088.1,0.1216]
[1760121452186,2.44624314,4088.0,4087.5,3.708]
[1760121452366,2.96809422,4088.1,4087.6,1.05309]
[1760121452580,1.92,4088.3,4087.6,1.05309]
[1760121452745,2.44600445,4088.3,4087.6,1.05309]
[1760121452944,2.44639139,4087.7,4087.5,3.708]
[1760121453180,2.96870449,4088.1,4087.5,3.708]
[1760121453379,4.36607421,4088.2,4087.6,0.45936423]
[1760121453723,0.52249629,4088.1,4087.6,14.9349]
[1760121453882,2.44635022,4087.8,4087.6,14.9349]
[1760121454087,2.44637181,4087.7,4087.2,0.4349]
[1760121454327,2.44637181,4087.7,4087.2,0.77227538]
[1760121454328,2.44651876,4087.5,4087.2,0.77227538]
[1760121454532,2.44651876,4087.5,4087.3,14.5]
[1760121454744,2.44642996,4087.6,4087.3,14.5]
[1760121455026,1.92,4087.9,4087.4,0.4349]
[1760121455231,2.96892141,4087.9,4087.4,0.4349]
[1760121455438,0.52267155,4088.0,4087.5,0.45936483]
[1760121455720,1.17586218,4088.5,4087.7,0.6336]
[1760121455924,0.001,4088.7,4088.4,0.224]
[1760121456237,0.001,4088.7,4087.8,2.36499648]
[1760121456382,2.44599592,4088.4,4087.9,3.709]
[1760121456586,0.001,4088.7,4087.9,3.709]
[1760121456587,0.52267155,4088.5,4088.0,14.5]
[1760121456790,0.001,4088.7,4088.1,0.4349]
[1760121457103,2.4458708,4088.6,4088.0,14.5]
[1760121457280,0.001,4088.7,4088.0,14.5]
[1760121457281,0.52367155,4088.7,4088.2,0.6336]
[1760121457477,0.001,4088.7,4088.3,2.01415]
[1760121457837,1.921,4088.7,4088.1,0.224]
[1760121458114,2.44612411,4088.1,4088.0,14.5]
[1760121458314,0.001,4088.7,4087.6,3.708]
[1760121458516,2.44619265,4088.0,4087.6,3.708]
[1760121459047,2.44628073,4087.9,4087.6,3.708]
[1760121459320,1.92,4087.9,4087.6,3.708]
[1760121459531,2.44624417,4087.9,4087.6,3.708]
[1760121459828,2.44620217,4088.0,4087.6,5.05494775]
[1760121459990,2.44620217,4088.0,4087.7,0.4349]
[1760121460182,1.92,4087.8,4087.6,3.708]
[1760121460382,0.52285488,4087.8,4087.3,14.5]
[1760121460610,2.44671755,4087.2,4086.8,2.039]
[1760121460813,2.44652532,4087.5,4086.9,4.1439]
[1760121461025,2.44656319,4087.4,4086.9,18.6439]
[1760121461181,1.92,4088.0,4086.9,18.6439]
[1760121461382,0.52286111,4088.0,4086.9,18.6439]
[1760121461609,2.44618395,4088.0,4086.9,18.6439]
[1760121461799,2.44665726,4087.3,4086.9,18.6439]
[1760121461995,0.1216,4087.7,4087.0,2.649529]
[1760121462200,4.36646381,4087.6,4087.1,0.02446722]
[1760121462385,4.36649879,4087.5,4087.2,0.4349]
[1760121462579,2.44660289,4087.3,4087.2,0.4349]
[1760121462814,0.1216,4087.7,4087.1,0.02446722]
[1760121463113,2.44646063,4087.6,4087.2,0.4349]
[1760121463426,2.44650523,4087.5,4087.3,0.4349]
[1760121463721,5.01067907,4087.7,4087.1,0.02446722]
[1760121463722,0.52271549,4087.6,4087.1,0.02446722]
[1760121463922,2.57319063,4088.1,4087.3,3.71]
[1760121463923,0.52271549,4088.0,4087.3,3.71]
[1760121464226,2.44619145,4088.0,4087.5,0.1216]
[1760121464385,1.92,4087.9,4087.6,0.4349]
[1760121464585,2.44271549,4087.9,4087.7,0.4349]
[1760121464916,0.52271549,4087.9,4087.8,0.4349]
[1760121465103,4.36622347,4088.0,4087.8,0.4349]
[1760121465305,0.52271549,4087.9,4087.8,0.4349]
[1760121465510,2.44622347,4088.0,4087.9,0.4349]
[1760121465819,4.88893896,4088.0,4087.9,0.4349]
[1760121466126,2.44639339,4087.7,4087.5,0.1216]
[1760121466297,4.36636348,4087.7,4087.6,4.1615]
[1760121466495,4.88907897,4087.7,4087.6,4.1615]
[1760121467021,4.88907897,4087.7,4087.5,0.1216]
[1760121467022,2.44642332,4087.6,4087.5,0.1216]
[1760121467225,2.44653404,4087.5,4087.2,3.709]
[1760121467410,1.92,4087.7,4087.2,5.28097792]
[1760121467586,2.44646674,4087.6,4087.2,4.1615]
[1760121467781,0.52271549,4087.8,4087.3,1.0861]
[1760121468030,0.52271549,4088.3,4087.5,0.6336]
[1760121468262,0.52271549,4088.4,4088.2,0.229]
[1760121468413,0.001,4088.7,4088.3,4.7951]
[1760121468733,0.001,4088.7,4088.4,4.1506]
[1760121468897,0.001,4088.7,4088.4,18.96418294]
[1760121469096,0.001,4088.7,4088.5,0.4416]
[1760121469329,2.44588479,4088.5,4088.4,18.209]
[1760121469486,2.44588479,4088.5,4088.4,18.6506]
[1760121469681,2.44588479,4088.5,4088.4,14.5]
[1760121469682,2.96961292,4088.5,4088.4,14.5]
[1760121470390,2.44600445,4088.3,4088.2,3.709]
[1760121470627,4.88973258,4088.3,4088.2,3.709]
[1760121470795,4.36600445,4088.3,4088.2,4.1506]
[1760121470996,4.36600445,4088.3,4088.2,3.709]
[1760121471307,4.88986931,4088.3,4088.2,3.709]
[1760121471685,1.92,4088.2,4087.5,0.4416]
[1760121471888,2.44612411,4088.1,4088.0,0.002]
[1760121472083,2.96998897,4088.1,4088.0,0.002]
[1760121473391,2.44612411,4088.1,4088.0,0.002]
[1760121473590,2.96998897,4088.1,4088.0,0.002]
[1760121473800,8.69698897,4088.1,4088.0,0.002]
[1760121474091,25.25810449,4088.1,4088.0,0.002]
[1760121474602,22.42376892,4088.1,4088.0,0.002]
[1760121474796,9.4716534,4088.1,4088.0,0.002]
[1760121475733,26.03276892,4088.1,4088.0,0.002]
[1760121475892,26.13176892,4088.1,4088.0,0.002]
[1760121476089,26.56731115,4088.1,4088.0,0.002]
[1760121476417,25.25810449,4088.1,4088.0,0.002]
[1760121476992,26.56731115,4088.1,4088.0,0.002]
[1760121477545,21.55010449,4088.1,4088.0,0.002]
[1760121477696,25.25810449,4088.1,4088.0,0.002]
[1760121478097,26.13198815,4088.1,4088.0,0.002]
[1760121478397,22.32498815,4088.1,4088.0,0.002]
[1760121478706,9.57087263,4088.1,4088.0,0.002]
[1760121479992,4.98898897,4088.1,4088.0,0.002]
[1760121480195,8.69698897,4088.1,4088.0,0.002]
[1760121480489,25.25810449,4088.1,4088.0,0.002]
[1760121480692,21.55010449,4088.1,4088.0,0.002]
[1760121480891,25.25810449,4088.1,4088.0,0.002]
[1760121484235,26.56731115,4088.1,4088.0,0.002]
[1760121484554,2.44713528,4086.5,4085.7,0.4416]
[1760121484703,2.44739228,4086.0,4085.7,0.4416]
[1760121485028,2.97101484,4086.2,4085.8,14.5]
[1760121485213,2.44743352,4086.0,4085.8,14.5]
[1760121485416,2.4474412,4085.9,4085.8,14.5]
[1760121485727,2.44735678,4086.1,4085.8,16.36333656]
[1760121486034,2.4474412,4085.9,4085.8,16.36333656]
[1760121486203,2.4474412,4085.9,4085.8,14.5]
[1760121486403,2.44760031,4085.7,4085.5,3.447]
[1760121486604,2.44751098,4085.8,4085.5,3.447]
[1760121486849,1.92,4085.9,4083.8,0.2365]
[1760121487012,2.44794475,4085.1,4084.1,0.4416]
[1760121487213,1.92,4085.2,4084.2,0.29531]
[1760121487403,6.15596264,4085.1,4084.3,14.5]
[1760121487630,2.44793843,4085.1,4084.3,14.5]
[1760121487832,1.92,4085.2,4084.4,0.4416]
[1760121488031,0.5227468,4085.2,4084.4,0.4416]
[1760121488216,1.92,4085.6,4085.1,2.44787815]
[1760121488413,4.36751372,4085.8,4085.2,0.71086642]
[1760121488708,2.04007637,4086.3,4085.3,1.0752]
[1760121488910,3.708,4086.2,4085.5,0.6336]
[1760121489238,2.44752792,4085.8,4085.5,0.6336]
[1760121489605,2.44752792,4085.8,4085.5,0.4416]
[1760121490533,4.3673214,4086.1,4085.2,1.0752]
[1760121490735,1.92,4086.1,4085.3,0.35231159]
[1760121491043,2.44209288,4086.1,4085.2,0.4416]
[1760121491251,4.36737834,4086.1,4085.2,0.4416]
[1760121491404,2.44764368,4085.6,4085.2,0.4416]
[1760121491824,2.44769592,4085.5,4085.2,0.4416]
[1760121492024,2.44757907,4085.7,4085.2,0.4416]
[1760121492420,2.447561,4085.7,4084.9,0.6336]
[1760121492647,2.44760256,4085.7,4084.9,3.65946626]
[1760121492846,2.447561,4085.7,4084.9,1.21146758]
[1760121493032,1.92,4085.6,4084.9,1.21146758]
[1760121493214,1.92,4085.6,4085.1,0.6336]
[1760121493543,1.92,4085.7,4085.0,0.6336]
[1760121493733,2.44792162,4085.1,4084.8,2.252]
[1760121493930,2.44762503,4085.6,4084.7,0.6336]
[1760121494132,2.44772312,4085.5,4084.9,0.4416]
[1760121494333,1.92,4085.8,4084.9,0.4416]
[1760121494530,2.44784537,4085.3,4085.0,0.1216]
[1760121495047,1.92,4085.5,4085.0,0.1216]
[1760121495250,2.0416,4085.6,4085.0,0.1216]
[1760121495551,2.44792049,4085.1,4085.0,0.1216]
[1760121496406,2.44771639,4085.5,4085.0,0.1216]
[1760121496610,2.44775716,4085.4,4085.0,0.5564]
[1760121496913,2.0416,4085.6,4085.1,0.4348]
[1760121497133,2.44792049,4085.1,4085.0,0.1216]
[1760121497332,2.44791095,4085.2,4085.0,0.1216]
[1760121497662,2.44792049,4085.1,4085.0,0.1216]
[1760121498015,2.44785311,4085.3,4085.0,0.1216]
[1760121498322,0.1216,4085.6,4085.0,0.5564]
[1760121498539,1.92,4086.0,4085.1,3.51631007]
[1760121498757,0.1216,4086.0,4085.2,0.5564]
[1760121498958,2.44748224,4085.9,4085.2,2.56943632]
[1760121499263,2.44761235,4085.7,4085.3,0.4348]
[1760121499573,2.44750574,4085.8,4085.3,0.4348]
[1760121499732,2.44750574,4085.8,4085.4,0.4348]
[1760121500330,0.1216,4086.0,4085.5,0.4348]
[1760121500546,2.44742539,4086.0,4085.6,0.5564]
[1760121500744,2.44742539,4086.0,4085.6,0.1216]
[1760121500945,0.65469526,4086.9,4086.0,2.4473625]
[1760121501145,0.1216,4086.8,4086.1,0.7862]
[1760121501374,1.92,4086.7,4086.1,0.1216]
[1760121501542,0.1216,4086.8,4086.1,0.73446]
[1760121501543,0.64335368,4086.8,4086.1,0.73446]
[1760121501866,4.36369526,4087.4,4086.2,0.4348]
[1760121502037,4.36369526,4087.4,4086.3,0.6336]
[1760121502038,2.44700256,4086.7,4086.3,0.6336]
[1760121502239,2.44700256,4086.7,4086.1,0.2298]
[1760121502240,2.44175368,4087.2,4086.1,0.2298]
[1760121502470,2.44697879,4086.7,4086.1,0.6336]
[1760121502635,2.44691394,4086.8,4086.2,0.45927261]
[1760121502834,2.44699144,4086.7,4086.2,0.45927261]
[1760121503249,4.36699144,4086.7,4086.3,0.4348]
[1760121503473,0.65469526,4087.3,4086.1,1.34114]
[1760121503474,0.65469526,4087.4,4086.5,0.6336]
[1760121503637,3.6235095,4087.6,4086.6,2.44697237]
[1760121503839,0.52237195,4087.6,4086.5,1.0684]
[1760121504039,0.52237195,4088.0,4086.8,0.6336]
[1760121504357,0.65469526,4088.3,4087.1,0.6336]
[1760121504679,0.65469526,4088.0,4087.0,0.6336]
[1760121504875,0.52237195,4088.1,4087.0,0.6336]
[1760121505167,1.92,4088.1,4087.0,0.6336]
[1760121505335,4.36617574,4088.1,4087.2,3.08021835]
[1760121505531,0.52237195,4088.0,4087.3,0.45926602]
[1760121505768,0.52237195,4088.0,4087.4,0.6336]
[1760121505975,0.001,4088.5,4087.6,0.6336]
[1760121506180,2.44614277,4088.1,4087.7,0.4348]
[1760121506340,0.52237195,4088.2,4087.8,0.4348]
[1760121506546,0.001,4088.5,4088.1,0.2298]
[1760121506745,0.001,4088.5,4088.2,1.22512688]
[1760121506976,0.001,4088.5,4088.2,1.0684]
[1760121507175,0.001,4088.5,4088.2,0.6336]
[1760121507475,0.001,4088.5,4088.3,0.4348]
[1760121507786,0.001,4088.5,4088.4,2.47040406]
[1760121507954,0.001,4088.5,4088.4,3.07954462]
[1760121508144,0.001,4088.5,4088.4,4.25965908]
[1760121508678,0.001,4088.5,4088.4,4.28411852]
[1760121508876,0.001,4088.7,4088.6,3.07942497]
[1760121509268,0.001,4088.7,4088.6,3.51422497]
[1760121510079,0.001,4088.7,4088.6,3.53868321]
[1760121510280,0.001,4088.7,4088.6,5.88453916]
[1760121511643,0.001,4088.7,4088.6,6.00613916]
[1760121511872,0.001,4088.7,4088.6,9.38282497]
[1760121512785,0.001,4088.7,4088.6,11.30282497]
[1760121513770,0.001,4090.9,4089.9,2.44504755]
[1760121513973,0.001,4090.9,4089.9,8.82364755]
[1760121514175,0.001,4090.9,4089.9,9.25844755]
[1760121514374,0.001,4090.9,4089.9,10.42880508]
[1760121514761,0.001,4090.9,4090.8,3.07810963]
[1760121515107,0.001,4090.9,4090.8,6.78510963]
[1760121515284,0.001,4090.9,4090.8,7.21990963]
[1760121519792,0.001,4090.9,4090.8,1.0684]
[1760121520107,0.001,4090.9,4090.8,9.25690963]
[1760121520287,0.001,4090.9,4090.8,10.45004176]
[1760121520466,0.001,4090.9,4090.8,2.26153213]
[1760121520801,0.001,4090.9,4090.8,4.1408]
[1760121521002,0.001,4090.9,4090.8,4.16524509]
[1760121521202,0.001,4090.9,4090.8,4.1408]
[1760121521505,0.001,4090.9,4090.8,4.16524509]
[1760121522205,0.001,4090.9,4090.8,4.1408]
[1760121522968,0.001,4090.9,4090.8,7.24335472]
[1760121523172,0.001,4090.9,4090.8,5.52171547]
[1760121523381,0.001,4090.9,4090.8,4.7744]
[1760121523798,0.001,4090.9,4090.8,4.1408]
[1760121524001,0.001,4090.9,4090.8,3.706]
[1760121524398,0.001,4090.9,4090.1,2.44492782]
[1760121524399,0.001,4090.9,4088.1,0.2298]
[1760121524596,4.36472059,4090.5,4089.1,0.6646]
[1760121524817,0.51600747,4090.4,4089.2,0.96725466]
[1760121525023,2.44504798,4089.9,4089.2,0.96725466]
[1760121525523,1.92,4090.0,4089.2,0.96725466]
[1760121525524,2.037,4090.6,4089.3,0.4348]
[1760121525725,2.44564552,4088.9,4088.8,0.4348]
[1760121525907,0.1937,4089.4,4088.2,1.1688]
[1760121526218,0.51630842,4089.6,4088.3,0.4291]
[1760121526524,2.43630842,4089.7,4088.4,0.6336]
[1760121526694,2.44546878,4089.2,4088.5,0.4291]
[1760121526901,2.44552873,4089.1,4088.5,0.4291]
[1760121527227,2.44552591,4089.1,4088.6,0.6336]
[1760121527395,1.92,4089.7,4088.7,0.4291]
[1760121527596,2.4455911,4089.0,4088.7,0.4291]
[1760121527828,0.1954,4089.6,4088.6,3.709]
[1760121528190,2.44564536,4089.0,4088.6,3.709]
[1760121528414,2.43735132,4089.4,4088.6,3.709]
[1760121528640,2.96271024,4089.4,4088.7,0.4291]
[1760121528836,1.92,4089.2,4088.7,0.4291]
[1760121529040,0.51735132,4089.5,4088.7,0.45355765]
[1760121529239,0.51735132,4089.4,4088.7,0.4291]
[1760121529462,0.51735132,4089.3,4088.7,0.4291]
[1760121529616,2.44570183,4088.9,4088.6,3.709]
[1760121529935,2.4454661,4089.2,4088.2,0.6336]
[1760121530135,3.19204658,4089.1,4087.7,2.7142]
[1760121530333,2.4459424,4088.5,4087.8,2.29505731]
[1760121530653,2.44594923,4088.4,4087.8,2.29505731]
[1760121531015,0.51735132,4088.5,4087.9,0.6336]
[1760121531215,5.02069971,4088.3,4088.2,0.002]
[1760121531424,4.88335577,4088.3,4088.2,0.002]
[1760121531658,4.98335577,4088.3,4088.2,0.002]
[1760121531954,8.69235577,4088.3,4088.2,0.002]
[1760121532520,4.98335577,4088.3,4088.2,0.002]
[1760121532715,10.73135577,4088.3,4088.2,0.002]
[1760121533131,2.44612411,4088.1,4088.0,0.18]
[1760121533476,6.18198977,4088.1,4088.0,0.18]
[1760121533651,6.28198977,4088.1,4088.0,0.18]
[1760121533960,6.28178461,4088.1,4088.0,0.18]
[1760121534163,6.18178461,4088.1,4088.0,0.18]
[1760121534365,3.30277301,4088.1,4088.0,0.18]
[1760121534567,5.87049712,4088.1,4088.0,0.18]
[1760121535125,5.00507543,4088.1,4088.0,0.18]
[1760121535662,5.87054864,4088.1,4088.0,0.18]
[1760121536450,2.43735132,4088.1,4088.0,0.18]
[1760121537479,4.88347543,4088.1,4088.0,0.18]
[1760121537846,5.63236681,4088.1,4088.0,0.18]
[1760121538050,9.99078461,4088.1,4088.0,0.18]
[1760121538299,2.44624379,4087.9,4086.1,0.2318]
[1760121538445,6.24635132,4088.1,4086.1,0.2318]
[1760121538446,0.64836316,4087.2,4086.1,0.2318]
[1760121538645,1.92,4087.0,4086.2,0.47487261]
[1760121538851,0.51735132,4086.9,4086.4,2.44708337]
[1760121539088,0.51735132,4086.8,4086.5,0.4504]
[1760121539287,0.51735132,4086.9,4086.5,0.4504]
[1760121539487,0.51735132,4086.9,4086.6,0.4504]
[1760121539686,0.51735132,4087.1,4086.7,0.4504]
[1760121539894,0.51735132,4087.0,4086.7,2.47142105]
[1760121540188,0.51735132,4087.2,4086.8,14.5]
[1760121540371,2.96409307,4087.1,4086.8,14.5]
[1760121540572,0.64836316,4087.7,4086.9,2.534]
[1760121540798,0.51829575,4087.9,4087.8,2.44630363]
[1760121540985,0.51829575,4088.2,4088.1,3.07972411]
[1760121541165,1.29672632,4089.1,4088.1,3.07972411]